[Event "Gibraltar Challengers B 2019"]
[Site "Caleta"]
[Date "2019.01.30"]
[Round "5"]
[White "Cano Sevilla, Ivan"]
[Black "Kakulidis, Ellen"]
[Result "1-0"]
[ECO "A17"]
[WhiteElo "1950"]
[BlackElo "2021"]
[Annotator "NA RC"]
[PlyCount "136"]
[EventDate "2019.01.18"]
[EventType "swiss"]
[EventCountry "GGB"]
[SourceTitle "playchess.com"]
[Source "ChessBase"]
[SourceQuality "1"]
[TimeControl "6600+10"]

{[%evp 13,136,-27,32767,32767,32767,34,19,32767,7,32767,32767,32767,32767,205,264,32767,32767,184,32767,152,32767,138,32767,32767,32767,32767,32767,32767,172,32767,32767,145,32767,32767,281,195,222,32767,32767,250,219,268,32767,32767,32767,32767,32767,32767,179,153,32767,118,144,125,149,105,197,105,32767,32767,32767,32767,32767,189,115,108,140,177,183,212,214,249,264,347,335,255,245,185,317,392,354,435,460,32767,32767,32767,759,1034,1731,4731,32767,32767,32767,32767,32767,4637,32767,11056,29977,32767,32767,32767,32767,29981,4634,7052,32767,32767,32767,29976,4627,32767,29969,32767,32767,32767,32767,32767,32767,32767,32767,32767,29984,32767,29994]} 1. Nf3 {[%emt 0:00:00]} Nf6 {[%emt 0:00:00]} 2. e3 {[%emt 0:00:03]} e6 {[%emt 0:00:29]} 3. c4 {[%emt 0:00:15]} d5 {[%emt 0:00:09]} 4. Nc3 {[%emt 0:00:04]} Be7 {[%emt 0:01:27]} 5. Qc2 {[%emt 0:00:34]} O-O {[%emt 0:01:14]} 6. b3 {[%emt 0:00:20]} b6 {[%emt 0:00:58]} 7. Bb2 {[%emt 0:00:09]} Bb7 {[%emt 0:00:18]} 8. d4 {[%emt 0:00:18]} Ne4 {[%emt 0:06:26]} 9. Bd3 {[%emt 0:02:07]} f5 {[%emt 0:10:04]} 10. Ne5 {[%emt 0:32:04]} c5 {[%emt 0:04:21]} 11. cxd5 {[%emt 0:01:07]} exd5 {[%emt 0:03:58]} 12. O-O {[%emt 0:07:17]} Nc6 {[%emt 0:05:07] [#]} 13. Nxd5 $1 {[%emt 0:20:29]} Bg5 {[%emt 0:03:13]} ({Wrong is} 13... Qxd5 $2 14. Bc4 $18) (13... Nxe5 {is a better defense.} 14. Nxe7+ Qxe7) 14. Nxc6 {[%emt 0:00:00]} Bxc6 {[%emt 0:01:06]} 15. Nb4 {[%emt 0:00:00]} Bb7 {[%emt 0:44:45]} 16. Bc4+ {[%emt 0:00:00]} Kh8 {[%emt 0:01:13]} 17. dxc5 {[%emt 0:00:00]} Nxc5 {[%emt 0:00:24]} 18. Rad1 {[%emt 0:00:48]} Qe8 {[%emt 0:00:20]} 19. Bd5 {[%emt 0:00:00]} Bxd5 {[%emt 0:00:42]} 20. Rxd5 {[%emt 0:06:38]} Ne4 {[%emt 0:04:29]} 21. Qc6 {[%emt 0:00:00]} Qxc6 {[%emt 0:05:09]} 22. Nxc6 {[%emt 0:00:00]} Rac8 {[%emt 0:00:13]} 23. Nd4 {[%emt 0:08:21]} Rc5 {[%emt 0:13:20]} (23... Bf6 $16 24. Rxf5 Kg8) 24. Rxc5 {[%emt 0:00:00]} Nxc5 {[%emt 0:00:10]} 25. b4 {[%emt 0:00:00]} Na4 {[%emt 0:00:45]} 26. Ne6 {[%emt 0:00:00] Double Attack} Rc8 {[%emt 0:01:42]} 27. Bxg7+ {[%emt 0:00:00]} Kg8 {[%emt 0:05:32]} 28. Bd4 {[%emt 0:00:00]} Be7 {[%emt 0:00:00]} 29. a3 {[%emt 0:00:00]} a5 {[%emt 0:00:00]} 30. bxa5 {[%emt 0:00:00]} bxa5 {[%emt 0:00:00]} 31. g3 {[%emt 0:00:00]} Bxa3 {[%emt 0:00:25]} 32. Kg2 {[%emt 0:00:00]} Bb4 {[%emt 0:00:40]} 33. Nf4 {[%emt 0:00:00]} Rc2 {[%emt 0:00:00]} 34. Nd5 {[%emt 0:01:28]} Nc3 {[%emt 0:00:00]} (34... Nc5 $16) 35. Bxc3 {[%emt 0:00:00]} Bxc3 {[%emt 0:00:00]} 36. Nxc3 {[%emt 0:00:00]} Rxc3 {[%emt 0:00:00]} 37. Ra1 {[%emt 0:00:06]} Rc5 {[%emt 0:00:09]} 38. Ra4 {[%emt 0:00:00]} Kf7 {[%emt 0:00:00]} 39. Kf3 {[%emt 0:00:00]} Ke6 {[%emt 0:01:35] [#]} 40. g4 $1 {[%emt 0:00:00]} fxg4+ {[%emt 0:00:00]} 41. Kxg4 {[%emt 0:00:00]} ({Don't take} 41. Rxg4 $6 Kd7 $16) 41... Rb5 {[%emt 0:00:00]} 42. f4 {[%emt 0:00:00]} h5+ {[%emt 0:00:00]} 43. Kf3 {[%emt 0:00:00]} Kf6 {[%emt 0:00:44]} 44. Rd4 {[%emt 0:00:00]} Kg6 {[%emt 0:00:00]} (44... Rb8 {was called for.} 45. Rd6+ Kf7) 45. Ke4 {[%emt 0:00:00]} Kf6 {[%emt 0:00:00]} (45... h4 {was worth a try.} 46. Kf3 Rb2) 46. Rd6+ {[%emt 0:00:00]} Ke7 {[%emt 0:00:00]} 47. Rd5 {[%emt 0:00:00]} Rb4+ {[%emt 0:00:00]} 48. Ke5 {[%emt 0:00:00]} a4 {[%emt 0:00:00]} 49. Ra5 {[%emt 0:00:00]} h4 {[%emt 0:00:39]} 50. e4 {[%emt 0:00:00]} h3 {[%emt 0:00:00]} 51. Ra7+ {[%emt 0:00:00]} Kf8 {[%emt 0:00:43]} 52. Kf5 {[%emt 0:00:00]} Rb2 {[%emt 0:00:00]} 53. Rxa4 {[%emt 0:00:00]} Rxh2 {[%emt 0:00:00]} 54. Kf6 {[%emt 0:00:57]} Ke8 {[%emt 0:01:54]} 55. e5 {[%emt 0:01:29]} Re2 {[%emt 0:00:09]} 56. f5 {[%emt 0:00:30]} h2 {[%emt 0:00:00]} 57. Rh4 {[%emt 0:00:01]} Kd8 {[%emt 0:00:00]} 58. e6 {[%emt 0:00:18]} Kc7 $1 {[%emt 0:00:23]} 59. Ke7 {[%emt 0:00:37]} Kc6 {[%emt 0:06:25]} 60. Rh5 {[%emt 0:07:08]} Kd5 {[%emt 0:00:34]} 61. Kf6 {[%emt 0:00:34]} Kd6 {[%emt 0:00:39]} 62. Rh4 {[%emt 0:00:55]} Kc7 {[%emt 0:00:24]} 63. Ke7 {[%emt 0:00:39]} Kc6 {[%emt 0:04:03]} 64. Rh8 {[%emt 0:04:18]} Kd5 {[%emt 0:01:46]} 65. Rh5 {[%emt 0:03:51]} Re5 {[%emt 0:01:14]} 66. Kf6 {[%emt 0:01:33]} Re2 {[%emt 0:00:00]} 67. e7 {[%emt 0:00:44]} Kd6 {[%emt 0:00:32]} 68. Rxh2 {[%emt 0:01:45]} Re6+ {[%emt 0:00:03]} 1-0

[Event "Gibraltar Challengers B 2019"]
[Site "Caleta"]
[Date "2019.01.30"]
[Round "5"]
[White "Pereira Lopez, Aketza"]
[Black "Suez-Panama, Gilles"]
[Result "1-0"]
[ECO "C00"]
[WhiteElo "1861"]
[BlackElo "2078"]
[Annotator "NA RC"]
[PlyCount "57"]
[EventDate "2019.01.18"]
[EventType "swiss"]
[EventCountry "GGB"]
[SourceTitle "playchess.com"]
[Source "ChessBase"]
[SourceQuality "1"]
[TimeControl "6600+10"]

1. e4 {[%emt 0:00:00]} e6 {[%emt 0:05:14]} 2. Nf3 {[%emt 0:00:06]} d5 {[%emt 0:00:29]} 3. e5 {[%emt 0:00:14]} c5 {[%emt 0:00:14]} 4. b4 {[%emt 0:00:18]} cxb4 {[%emt 0:00:24]} 5. a3 {[%emt 0:00:15]} Nc6 {[%emt 0:00:26]} 6. axb4 {[%emt 0:00:16]} Bxb4 {[%emt 0:00:43]} 7. c3 {[%emt 0:00:07]} Be7 {[%emt 0:01:26]} 8. d4 {[%emt 0:00:16]} Bd7 {[%emt 0:01:59]} 9. Bd3 {[%emt 0:00:48]} f5 {[%emt 0:03:43]} 10. O-O {[%emt 0:00:42] C00: French: Unusual White 2nd moves} (10. h3 h5 11. Rg1 Nh6 12. Bxh6 Rxh6 13. g4 hxg4 14. hxg4 fxg4 15. Rxg4 Qb6 16. Nbd2 Rh1+ 17. Ng1 O-O-O {0-1 (49) Martens,M (2430)-Nikolic,P (2671) Amsterdam 2004}) 10... Nh6 {[%emt 0:04:12]} 11. Ne1 $146 {[%emt 0:08:56]} ({Predecessor:} 11. Bxh6 gxh6 12. Ne1 {0-1 (40) Lam,P (2117)-MacKenzie,C (2096) England 2012}) 11... O-O {[%emt 0:03:26]} 12. Bxh6 {[%emt 0:01:08]} gxh6 {[%emt 0:00:02]} 13. g4 {[%emt 0:00:38]} ({Predecessor:} 13. Qh5 Rf7 14. Qxh6 Na5 15. f4 Nb3 16. Ra2 Nc1 17. Rb2 Nxd3 18. Nxd3 {0-1 (40) Lam,P (2117)-MacKenzie,C (2096) England 2012}) 13... fxg4 {[%emt 0:06:19]} 14. Qxg4+ {[%emt 0:00:09]} Kh8 {[%emt 0:00:04]} 15. Qh3 {[%emt 0:06:29]} Bg5 {[%emt 0:07:41]} 16. Ng2 $1 {[%emt 0:02:04]} Rg8 {[%emt 0:03:44]} 17. f4 {[%emt 0:02:01]} Be7 {[%emt 0:00:32]} 18. Qxh6 {[%emt 0:04:24]} Rg7 {[%emt 0:00:08]} 19. Kh1 {[%emt 0:05:19]} Qg8 {[%emt 0:00:37]} 20. Qh3 {[%emt 0:11:00]} Qf7 {[%emt 0:01:40]} (20... b5 $11) 21. Nd2 {[%emt 0:02:23]} Rag8 {[%emt 0:00:08]} 22. Ne3 {[%emt 0:00:17]} Bd8 {[%emt 0:01:52]} 23. f5 {[%emt 0:07:05]} exf5 {[%emt 0:02:05]} 24. Bxf5 {[%emt 0:01:41]} Bxf5 {[%emt 0:01:13]} 25. Nxf5 {[%emt 0:12:12]} Qe6 {[%emt 0:00:37]} 26. Nb3 {[%emt 0:10:24]} b6 {[%emt 0:02:17]} 27. Qe3 {[%emt 0:01:01]} (27. Rf3 $16) 27... Bg5 {[%emt 0:02:57]} 28. Nxg7 $18 {[%emt 0:01:50]} Be7 {[%emt 0:00:11]} 29. Nf5 {[%emt 0:00:02]} 1-0

[Event "Gibraltar Challengers B 2019"]
[Site "Caleta"]
[Date "2019.01.30"]
[Round "5"]
[White "Livesey, R Nigel"]
[Black "Tkadlecek, Petr"]
[Result "0-1"]
[ECO "A23"]
[WhiteElo "1797"]
[BlackElo "1719"]
[Annotator "NA RC"]
[PlyCount "94"]
[EventDate "2019.01.18"]
[EventType "swiss"]
[EventCountry "GGB"]
[SourceTitle "playchess.com"]
[Source "ChessBase"]
[SourceQuality "1"]
[TimeControl "6600+10"]

1. c4 {[%emt 0:00:00]} e5 {[%emt 0:00:00]} 2. g3 {[%emt 0:00:00]} Nf6 {[%emt 0:00:32]} 3. Bg2 {[%emt 0:00:03]} Bc5 {[%emt 0:00:23]} 4. e3 {[%emt 0:00:25]} O-O {[%emt 0:00:13]} 5. Nc3 {[%emt 0:00:18]} c6 {[%emt 0:00:27]} 6. Nge2 {[%emt 0:01:19]} Re8 {[%emt 0:01:15]} 7. O-O {[%emt 0:00:23]} d6 {[%emt 0:05:21]} 8. d4 {[%emt 0:01:00]} exd4 {[%emt 0:00:25]} 9. exd4 {[%emt 0:00:32]} Bb6 {[%emt 0:01:21]} 10. Qc2 {[%emt 0:01:47]} Bg4 {[%emt 0:00:42]} 11. Nf4 {[%emt 0:01:05]} Bxd4 {[%emt 0:00:17]} 12. h3 {[%emt 0:01:16]} Bc8 {[%emt 0:01:46]} 13. Rd1 {[%emt 0:02:01]} Bb6 {[%emt 0:01:19]} 14. b3 {[%emt 0:01:05]} Na6 {[%emt 0:00:28]} 15. Ba3 {[%emt 0:02:19]} Bc5 {[%emt 0:00:59]} 16. Bb2 {[%emt 0:03:06]} Re7 {[%emt 0:03:21]} 17. Na4 {[%emt 0:02:17]} Bb4 {[%emt 0:00:35]} 18. a3 {[%emt 0:01:28]} Ba5 {[%emt 0:00:20]} 19. b4 {[%emt 0:01:03]} Bc7 {[%emt 0:00:14]} 20. b5 {[%emt 0:02:04]} Nb8 {[%emt 0:01:27]} 21. Bxf6 {[%emt 0:03:58]} gxf6 {[%emt 0:00:06]} 22. Nc5 {[%emt 0:03:28]} Re5 {[%emt 0:01:17]} 23. Ncd3 {[%emt 0:01:07]} Bf5 {[%emt 0:03:18]} 24. Qb2 {[%emt 0:03:54]} Bxd3 {[%emt 0:04:00]} 25. Nxd3 {[%emt 0:00:15]} Rg5 {[%emt 0:02:25]} 26. h4 {[%emt 0:00:48]} Rg6 {[%emt 0:01:21]} 27. Be4 {[%emt 0:02:26]} Rg4 {[%emt 0:00:49]} 28. Qe2 {[%emt 0:01:09]} Qd7 {[%emt 0:01:25]} 29. Qf3 {[%emt 0:00:22]} Rg7 {[%emt 0:05:18]} 30. Bf5 {[%emt 0:03:13]} Qd8 {[%emt 0:01:42]} 31. Nf4 {[%emt 0:01:27]} Kh8 {[%emt 0:03:14]} 32. Nh5 {[%emt 0:01:10]} Rg8 {[%emt 0:01:12]} 33. Bd3 {[%emt 0:00:58]} Nd7 {[%emt 0:01:35]} 34. Qf5 {[%emt 0:01:06]} Rg6 {[%emt 0:00:40]} 35. Qf4 {[%emt 0:02:09]} d5 {[%emt 0:00:46]} 36. Qe3 {[%emt 0:00:02]} Bb6 {[%emt 0:02:07]} 37. Qe2 {[%emt 0:03:58]} Rg8 {[%emt 0:03:07]} 38. Qc2 {[%emt 0:05:59]} f5 {[%emt 0:01:40]} 39. Bxf5 {[%emt 0:00:33]} Qxh4 {[%emt 0:00:45]} 40. Bxd7 {[%emt 0:13:05]} Qxh5 {[%emt 0:02:44]} 41. bxc6 {[%emt 0:01:33]} Rxg3+ {[%emt 0:01:03]} 42. Kf1 {[%emt 0:00:30]} Qh1+ {[%emt 0:01:54]} 43. Ke2 {[%emt 0:00:07]} Qf3+ {[%emt 0:01:53]} 44. Kf1 {[%emt 0:01:23]} Rag8 {[%emt 0:00:42]} 45. Qb2+ {[%emt 0:00:49]} d4 {[%emt 0:01:01]} 46. Ke1 {[%emt 0:01:39]} Ba5+ {[%emt 0:00:54]} 47. Rd2 {[%emt 0:00:07]} Rg1# {[%emt 0:00:05]} 0-1

[Event "Gibraltar Challengers B 2019"]
[Site "Caleta"]
[Date "2019.01.30"]
[Round "5"]
[White "Diaz Mino, Daniel"]
[Black "Cramling Bellon, Anna"]
[Result "1/2-1/2"]
[ECO "B22"]
[WhiteElo "1769"]
[BlackElo "2025"]
[Annotator "NA RC"]
[PlyCount "95"]
[EventDate "2019.01.18"]
[EventType "swiss"]
[EventCountry "GGB"]
[SourceTitle "playchess.com"]
[Source "ChessBase"]
[SourceQuality "1"]
[TimeControl "6600+10"]

1. e4 {[%emt 0:00:00]} c5 {[%emt 0:00:00]} 2. d4 $146 {[%emt 0:00:01]} ({Predecessor:} 2. Nf3 e6 3. c3 Nf6 4. e5 Nd5 5. d4 (5. g3 Nc6 6. Bg2 Be7 7. O-O O-O 8. d4 cxd4 9. cxd4 {½-½ (31) Rozentalis,E (2557)-Westerberg,J (2488) Gothenburg 2016}) 5... cxd4 {½-½ (24) Vachier Lagrave,M (2789)-Caruana,F (2816) Leuven 2018}) 2... cxd4 {[%emt 0:00:08]} 3. c3 {[%emt 0:00:03]} Nf6 {[%emt 0:00:25]} 4. e5 {[%emt 0:00:07]} Nd5 {[%emt 0:00:04]} 5. cxd4 {[%emt 0:00:10]} e6 {[%emt 0:00:11]} 6. Nf3 {[%emt 0:01:17]} d6 {[%emt 0:00:53]} 7. g3 {[%emt 0:01:17] B22: Sicilian: 2 c3} (7. Bc4 Nc6 8. O-O Be7 9. Qe2 O-O 10. a3 Bd7 11. exd6 Bxd6 12. Nc3 Nce7 13. Ne4 Bc6 14. Ne5 Rc8 15. Rd1 Bb8 16. Ng5 Be8 17. Bd3 Nf6 18. Ngf3 Ned5 19. Bd2 a6 20. Rac1 Rxc1 21. Rxc1 Qb6 22. Nc4 Qd8 23. Nce5 Qb6 24. Nc4 Qd8 {½-½ (24) Vachier Lagrave,M (2789)-Caruana,F (2816) Leuven 2018}) 7... Nc6 {[%emt 0:03:06]} 8. Bg2 {[%emt 0:09:20]} Be7 {[%emt 0:21:01]} 9. O-O {[%emt 0:00:32]} O-O {[%emt 0:00:18]} 10. b3 {[%emt 0:03:17]} ({Predecessor:} 10. exd6 Qxd6 11. Nc3 Rd8 12. Re1 Bd7 13. Ng5 h6 14. Nge4 {½-½ (31) Rozentalis,E (2557)-Westerberg,J (2488) Gothenburg 2016}) 10... Qc7 {[%emt 0:10:40]} 11. Bb2 {[%emt 0:02:44]} Rd8 {[%emt 0:00:09]} 12. Qe2 {[%emt 0:00:41]} dxe5 {[%emt 0:04:33]} 13. dxe5 {[%emt 0:00:22]} Ndb4 {[%emt 0:02:00]} 14. Rd1 {[%emt 0:02:13]} b6 {[%emt 0:09:10]} 15. Nbd2 {[%emt 0:02:59]} Ba6 {[%emt 0:03:16]} 16. Qe4 {[%emt 0:15:13]} Bd3 {[%emt 0:07:18]} (16... Nd3 $17 17. Bd4 Rac8) 17. Qf4 {[%emt 0:00:55]} Be2 {[%emt 0:16:42]} 18. Rdc1 {[%emt 0:08:06]} Qd7 {[%emt 0:14:44]} 19. Qe3 $1 {[%emt 0:24:54]} Bxf3 {[%emt 0:13:52]} 20. Nxf3 {[%emt 0:00:18]} Rac8 {[%emt 0:00:13]} (20... Bc5 $5 21. Qe4 Qd3 $15) 21. Qe2 {[%emt 0:02:50]} Qd3 {[%emt 0:00:38]} 22. Bf1 {[%emt 0:13:11]} Bc5 {[%emt 0:00:26]} 23. Qxd3 {[%emt 0:03:33]} Nxd3 {[%emt 0:00:02]} 24. Bxd3 {[%emt 0:00:20]} Rxd3 {[%emt 0:00:02]} 25. Kg2 {[%emt 0:00:21]} h6 {[%emt 0:01:16]} 26. Rd1 {[%emt 0:08:28]} Rcd8 {[%emt 0:00:02]} 27. Rxd3 {[%emt 0:00:15]} Rxd3 {[%emt 0:00:02]} 28. Rc1 {[%emt 0:00:53]} a5 {[%emt 0:02:43]} 29. Bc3 {[%emt 0:02:01]} Nb4 {[%emt 0:00:29]} 30. Bxb4 {[%emt 0:00:18]} axb4 {[%emt 0:00:19]} 31. Rc2 {[%emt 0:00:42]} Kf8 {[%emt 0:00:14]} 32. Rd2 {[%emt 0:03:14]} Rxd2 {[%emt 0:00:08]} 33. Nxd2 {[%emt 0:00:01]} Ke7 {[%emt 0:00:11]} 34. f4 {[%emt 0:00:20]} f6 {[%emt 0:00:01]} 35. Kf3 {[%emt 0:00:25]} f5 {[%emt 0:00:09]} 36. Ke2 {[%emt 0:00:10]} Kd7 {[%emt 0:00:05]} 37. Nf3 {[%emt 0:00:55]} Kc6 {[%emt 0:00:05]} 38. Kd3 {[%emt 0:00:01]} Kd5 {[%emt 0:00:12]} 39. Ne1 {[%emt 0:03:01]} h5 {[%emt 0:00:07]} 40. Nf3 {[%emt 0:00:35]} Bf2 {[%emt 0:00:11]} 41. Nd2 {[%emt 0:00:08]} b5 {[%emt 0:00:07]} 42. Nf3 {[%emt 0:00:12]} Bb6 {[%emt 0:00:06]} 43. Nd2 {[%emt 0:00:03]} Bd8 {[%emt 0:00:13]} 44. Nf3 {[%emt 0:00:36]} Bb6 {[%emt 0:00:10]} 45. Ne1 $11 {[%emt 0:00:05]} Bg1 {[%emt 0:00:05]} 46. Nf3 {[%emt 0:00:02]} Bf2 {[%emt 0:00:09]} 47. Ke2 {[%emt 0:00:22]} Bc5 {[%emt 0:00:22]} 48. Kd3 {[%emt 0:00:01] Kxe5 [%emt 00:00:17]} 1/2-1/2